Workbook

Sheet Sheet1
A1: INSTRUCTIONS: Use this form when a single information collection document involves multiple reporting and recordkeeping requirements. The totals of the figures in cols. should be entered in item 13 of OMB-83-I: cols. (D) &/or (I) = 13a (respondent is only counted once); cols. F & I = 13b; cols. H & K = 13c. (F)Total/(D)Total = (E)Average (H)Total/(F)Total = (G)Average (K)Total/(I)Total = (J)Average NOTE: The columns will calculate automatically. If Col. E's response is something other than annually, i.e., 1/6 years, list as "1/6" & decimal will display. | I1: TITLE OF INFORMATION COLLECTION DOCUMENT | O1: OMB NO. | P1: 0560-0291
I3: WHIP and QLP
O4: DATE PREPARED
O5: 2022-03-04
A10: IDENTIFICATION OF REPORTING OR RECORDKEEPING REQUIREMENT | H10: ANNUAL BURDEN
H12: REPORTS | N12: RECORDS | Q12: RESPONDENT COST
L14: TOTAL BURDEN HOURS | P14: TOTAL
G15: FORMS NO (S) | H15: NO. OF | I15: NO OF | J15: TOTAL ANNUAL | K15: HOURS | L15: (Col. F x G) | N15: NO. OF | O15: ANNUAL | P15: RECORD- | Q15: COST | R15: TOTAL
A16: SECTION OF | B16: DESCRIPTION | G16: (If "none" | H16: RESPONDENTS | I16: RESPONSES | J16: RESPONSES | K16: PER | L16: (H) | N16: RECORD- | O16: HOURS PER | P16: KEEPING HOURS | Q16: PER | R16: COST
A17: REGS. | G17: so state) | I17: PER | J17: (Col. D x E) | K17: RESPONSE | N17: KEEPERS | O17: RECORD- | P17: (Col. I x J) | Q17: HOUR | R17: (Col. H x L)
I18: RESPONDENT | L18: EXEMPT | M18: NON-EXEMPT | O18: KEEPER
A19: (A) | B19: (B) | G19: (C) | H19: (D) | I19: (E) | J19: (F) | K19: (G) | N19: (I) | O19: (J) | P19: (K) | Q19: (L) | R19: (M)
B20: Wildfire Hurricane Idemnity Program Application | G20: FSA-890 | H20: 40.831 | I20: 1 | J20: 40,831 | K20: 0.5 | M20: =SUM(J20*K20) -> 20,416 | Q20: $53.71 | R20: =SUM(M20*Q20) -> 1096516.51
B21: Crop Insurance and/or NAP Coverage Agreement | G21: FSA-891 | H21: 40,831 | I21: 1 | J21: 40,831 | K21: 0.0833 | M21: 3,401 | Q21: $53.71 | R21: 182679.65
B22: Request for an Exeption to the WHIIP Payment Limitation of !25,000 | G22: FSA-892 | H22: 16,332 | I22: 1 | J22: 16,332 | K22: 0.0833 | M22: 1,360 | Q22: $53.71 | R22: 73070.07
B23: 2018 Citrus Proudcrion History and Approved Field Records (Florida only) | G23: FSA-893 | H23: 3,293 | I23: 1 | J23: 3,293 | K23: 0.0833 | M23: 274 | Q23: $53.71 | R23: 14733.02
B24: Wildfires and Hurriance Indemity Program Appplication (Continuation) | G24: FSA-890 (contiunuation) | H24: 12,250 | I24: 1 | J24: 12,250 | K24: 0.25 | M24: 3,063 | Q24: $53.71 | R24: 164486.88
B25: Application Grant for Florida | G25: Grant | H25: 3,293 | I25: 1 | J25: 3,293 | K25: 0.333 | M25: 1,097 | Q25: $53.71 | R25: 58896.72
A26: 7 CFR Part 760 Subpart R | B26: Application | G26: FSA-898 | H26: 180,000 | I26: 1 | J26: =SUM(H26*I26) -> 180,000 | K26: =45/60 -> 0.75 | M26: =SUM(J26*K26) -> 135,000 | Q26: $53.71 | R26: 7,250,850
A27: 7 CFR Part 760 Subpart R | B27: Historical Nutritional Value Weighted Average Worksheet | G27: FSA-899 | H27: =12000*0.8 -> 9,600 | I27: 2 | J27: 19,200 | K27: =45/60 -> 0.75 | M27: 14,400 | Q27: $53.71 | R27: 773,424
A28: 7 CFR Part 760 Subpart R | B28: Crop Insurance Noninsured Assistance Program Coverage Agreement | G28: FSA-895 | H28: =H26*0.1 -> 18,000 | I28: 1 | J28: 18,000 | K28: =5/60 -> 0.08 | M28: 1,500 | Q28: $53.71 | R28: =SUM(M28*Q28) -> 80,565
A29: 7 CFR part 1400 | B29: Farm Operating Plan for an Entity | G29: CCC-902E | H29: 4,500 | I29: 1 | J29: 4,500 | K29: =15/60 -> 0.25 | M29: 1,125 | Q29: $53.71 | R29: 60,424
A30: 7 CFR part 1400 | B30: Farm Operating Plan for an Individual | G30: CCC-902I | H30: 4,500 | I30: 1 | J30: =SUM(H30*I30) -> 4,500 | K30: =15/60 -> 0.25 | M30: 1,125 | Q30: $53.71 | R30: 60,424
A31: 7 CFR part 1400 | B31: Average Adjusted Gross Income (AGI) Certification and Consent to Disclosure of Tax Information | G31: CCC-941 | H31: =H26*0.05 -> 9,000 | I31: 1 | J31: 9,000 | K31: =5/60 -> 0.08 | M31: =SUM(J31*K31) -> 750 | Q31: $53.71 | R31: 40,283
A32: 7 CFR part 1400 | B32: Certification of Income From Farming, Ranching and Forestry Operations, optional | G32: CCC-942 | H32: =H26*0.005 -> 900 | I32: 1 | J32: 900 | K32: =10/60 -> 0.17 | M32: 150 | Q32: $53.71 | R32: 8,057
A33: 7 CFR part 1400 | B33: Member Information for Legal Entities, if applicable | G33: CCC-901 | H33: =H26*0.01 -> 1,800 | I33: 1 | J33: 1,800 | K33: =30/60 -> 0.50 | M33: 900 | Q33: $53.71 | R33: 48,339
A34: 7 CFR part 2 | B34: Highly Erodible Land Conservation (HELC) and Wetland Conservation Certification (exempt from PRA 16 U.S.C. 3846) | G34: AD-1026 | H34: =H26*0.01 -> 1,800 | I34: 1 | J34: 1,800 | K34: =5/60 -> 0.08 | L34: =$J34*$K34 -> 150
B35: Report of Acreage | G35: FSA-578 | H35: =H26*0.1 -> 18,000 | I35: 1 | J35: 18,000 | K35: 0.50 | L35: =$J35*$K35 -> 9,000
B39: SUBTOTAL | K39: 236100 | L39: =SUM(L26:L32) -> 0 | M39: 184,551 | P39: =SUM(P26:P38) -> 0.00 | R39: 9,912,234
B40: TOTAL OF ALL PAGES | J40: =SUM(J39) -> 0 | K40: 236100 | L40: =SUM(L39) -> 0 | M40: =SUM(M39) -> 184,551 | P40: =SUM(P39) -> 0.00 | R40: =SUM(R39) -> 9,912,234
A41: TOTAL - COLUMNS "F" AND "I" = OMB 83-I, 13b; COLUMNS "H" AND "K" = OMB 83-I, 13c | J41: =SUM(J40+N40) -> 0 | M41: =SUM(M40+P40) -> 184,551
